{"text_format":"3","workbook":"xlsx","n_sheets":4,"sheets":["Datos básicos","Presupuesto financiamientos","Transferencia de financiamiento","Ejemplo"],"not_rendered":{"defined_names":7},"read":"whole","date_system":"1900"}

{"sheet":"Datos básicos","index":0,"n_rows":23,"n_cols":10,"rows_kept":23,"merged":[[0,1,0,6],[0,9,0,14],[2,2,2,6],[4,2,4,4],[5,2,5,6],[6,2,6,6],[7,4,7,6],[8,4,8,6],[16,3,16,6],[17,3,17,6],[18,3,18,6],[19,3,19,6],[20,2,20,6],[22,2,22,6]]}
[null,"Datos básicos",{"$nulls":7},"Instrucciones de tramitación para los receptores:\nIntroduzca primero los siguientes datos básicos antes de rellenar la hoja “Presupuesto financiamientos”.\nRellene solo las celdas con fondo azul. Todas las demás celdas se calculan automáticamente."]
[]
[null,"Nombre del receptor: ",{"$nulls":5},{"$f":"IF(C3=\"Bitte eintragen\",\"- Bitte den Namen Ihres Vereins im Feld <Name des Zuschussempfängers> eintragen; \",\" \")","v":" "}]
[]
[null,"¿Se trata del primer presupuesto\no de una adaptación del contrato?","Seleccionar",null,null,{"$f":"IF(C5=\"Complemento al contrato\",\"¿Qué número de adaptación del contrato?:\",\"\")","v":""},"Seleccionar solo en caso de complemento al contrato",{"$f":"IF(C5=\"Vertragsanpassung\",1,0)","v":0}]
[null,"Título del proyecto",{"$nulls":5},{"$f":"IF(C6=\"Veranstaltung\",1,IF(C6=\"Projekt\",1,0))","v":0}]
[null,"Número del contrato"]
[null,"¿Necesita costos generales de administración?","Seleccionar","Indicar el importe de los costos generales de administración en porcentaje ",{"$nulls":3},{"$f":"IF(C8=\"Ja, anderer Betrag\",1,0)","v":0}]
[null,"¿Aporta usted una\ncontribución (financiera) propia?","Seleccionar","Importe en EUR",{"$nulls":3},{"$f":"IF(C9=\"Ja, anderer Betrag\",1,0)","v":0}]
[null,"¿Cuántos donantes está previsto que cofinancien el proyecto (además de la GIZ)?",0,"Nombre del proveedor externo de fondos","LLL","Importe de los fondos de terceros en EUR",300]
[{"$nulls":3},"Nombre del proveedor externo de fondos","ccc","Importe de los fondos de terceros en EUR",400,{"$f":"IF(C11=\"Ja\",1,0)","v":0}]
[{"$nulls":3},"Nombre del proveedor externo de fondos","ddd","Importe de los fondos de terceros en EUR",500,{"$f":"IF(C12=\"Ja\",1,0)","v":0}]
[{"$nulls":3},"Nombre del proveedor externo de fondos","FFF","Importe de los fondos de terceros en EUR",600]
[{"$nulls":3},"Nombre del proveedor externo de fondos","HHH","Importe de los fondos de terceros en EUR",700]
[{"$nulls":3},"Nombre del proveedor externo de fondos","LLL","Importe de los fondos de terceros en EUR",800]
[{"$nulls":3},"Nombre del proveedor externo de fondos","MMM","Importe de los fondos de terceros en EUR",900]
[null,"¿Está previsto transferir financiamientos a receptores terceros? (Tenga en cuenta que no se está haciendo referencia a prestaciones).","Seleccionar","Son contrapartes que implementan de forma autónoma una parte del proyecto del receptor. Debe presentarse un presupuesto aparte y el proyecto de la GIZ debe realizar un examen de la aptitud comercial y jurídica (solo los criterios de personalidad jurídica y utilidad pública). "]
[null,"¿Se adquieren medicamentos y/o pesticidas y/o fertilizantes minerales?  ","Seleccionar","Es necesario un proceso de autorización interno de la GIZ aparte."]
[null,"¿La cuota de adquisición de equipos y materiales es superior a 1.000.000 de euros o más del 50% con un valor contractual del financiamiento de al menos 400.000 euros?","Seleccionar","Es necesario un proceso de autorización interno de la GIZ aparte."]
[null,"¿Se financian medidas de construcción?  ","Seleccionar","Dado el caso, puede ser necesario un proceso de autorización interno de la GIZ aparte.\nTenga en cuenta que las medidas de construcción en el marco de un contrato de subvención local sólo son autorizadas por la GIZ en raras excepciones. \n"]
[null,"¿Desea que se muestren ayudas para la introducción de datos en el presupuesto? \nSe recomienda responder “Sí” para la edición.\nSe recomienda responder “No” para una mejor visión de conjunto.","Seleccionar"]
[]
[null,"Fecha de la creación del presupuesto:"]

{"sheet":"Presupuesto financiamientos","index":1,"n_rows":179,"n_cols":15,"rows_kept":179,"merged":[[0,0,0,8],[0,14,0,23],[1,0,1,9],[3,14,3,23],[4,1,4,7],[4,8,4,9],[5,3,5,7],[5,9,149,9],[43,3,43,7],[44,3,44,6],[45,3,45,6],[46,3,46,6],[47,3,47,6],[48,3,48,6],[49,3,49,6],[50,3,50,6],[51,3,51,6],[52,3,52,6],[53,3,53,6],[54,3,54,6],[55,3,55,6],[56,3,56,6],[57,3,57,6],[58,3,58,6],[59,3,59,6],[60,3,60,6],[61,3,61,6],[62,3,62,6],[63,3,63,6],[64,3,64,6],[65,3,65,6],[66,3,66,6],[67,3,67,6],[68,3,68,6],[69,3,69,6],[70,3,70,6],[71,3,71,6],[72,3,72,6],[73,3,73,7],[74,3,74,6],[75,3,75,6],[76,3,76,6],[77,3,77,6],[78,3,78,6],[79,3,79,6],[80,3,80,6],[81,3,81,6],[82,3,82,6],[83,3,83,6],[84,3,84,6],[85,3,85,6],[86,3,86,6],[87,3,87,6],[88,3,88,6],[89,3,89,6],[90,3,90,6],[91,3,91,6],[92,3,92,7],[93,3,93,6],[94,3,94,6],[95,3,95,6],[96,3,96,6],[97,3,97,6],[98,3,98,7],[99,3,99,6],[100,3,100,6],[101,3,101,6],[102,3,102,6],[103,3,103,6],[104,3,104,6],[105,3,105,6],[106,3,106,6],[107,3,107,6],[108,3,108,6],[109,3,109,6],[110,3,110,6],[111,3,111,6],[112,3,112,6],[113,3,113,6],[114,3,114,6],[115,3,115,7],[116,3,116,6],[117,3,117,6],[118,3,118,6],[119,3,119,6],[120,3,120,6],[121,3,121,6],[122,3,122,6],[123,3,123,6],[124,3,124,6],[125,3,125,6],[126,3,126,6],[127,3,127,6],[128,3,128,6],[129,3,129,6],[130,3,130,6],[131,3,131,6],[132,3,132,7],[133,4,133,6],[134,4,134,6],[135,4,135,6],[136,4,136,6],[137,4,137,6],[138,4,138,6],[139,4,139,6],[140,4,140,6],[141,4,141,6],[142,4,142,6],[143,3,143,7],[144,3,144,6],[145,3,145,6],[146,3,146,6],[147,3,147,6],[148,3,148,6],[149,1,149,7],[150,3,150,7],[151,4,151,6],[152,1,152,7],[153,3,153,7],[154,3,154,6],[155,3,155,6],[156,3,156,6],[157,3,157,6],[158,3,158,6],[159,3,159,6],[160,1,160,7],[161,3,161,7],[162,3,162,6],[163,3,163,6],[164,3,164,6],[165,3,165,6],[166,3,166,6],[167,3,167,6],[168,3,168,6],[169,3,169,6],[170,1,170,7],[170,8,170,9],[172,1,172,10],[174,1,174,9],[175,1,175,9],[176,1,176,9],[178,1,178,9]]}
[{"$f":"IF('Datos básicos'!C3=\"\",\"Introduzca primero los datos básicos\",CONCATENATE(\"Presupuesto - Anexo 1\",CHAR(10),'Datos básicos'!C3,\" - \",'Datos básicos'!C6,\"\",'Datos básicos'!E6,\"\",IF(L5=\"VE\",CONCATENATE(\" - \",'Datos básicos'!G5,\" Complemento al contrato\",\"\"),\"\")))","v":"Introduzca primero los datos básicos"},{"$nulls":8},{"$f":"'Datos básicos'!C23","v":"00:00:00"},{"$nulls":3},"Sin cambios","Instrucciones:\nIntroduzca primero los datos básicos antes de rellenar esta hoja “Presupuesto financiamientos”.\nEn la hoja “Presupuesto financiamientos” rellene solo las celdas con fondo azul. Todas las demás celdas se calculan automáticamente."]
[{"$f":"IF(NOT(ISBLANK('Datos básicos'!C7)),CONCATENATE(\"Número del contrato:\",'Datos básicos'!C7),\"\")","v":""}]
[{"$nulls":9},"2024-09",{"$nulls":3},"cambios"]
[null,"Descripción","Có-\ndigo","Número ","Unidad (persona)","Número","Unidad (p. ej.,mes, contrato, vuelo…)","Subvencio-nable hasta  \nen EUR \n(precio por unidad) ","Contribución\ntotal de la GIZ \nen EUR (hasta)","Contribución propia / financiamiento de terceros \nen EUR (hasta) ",null,{"$f":"IF($L$5=\"VE\",CONCATENATE(\"En el caso de ajustes contractuales\",CHAR(10),\"¿Ha cambiado la línea presupuestaria?\"),\"\")","v":""},null,null,"Indicaciones generales: \nEste formato del presupuesto es válido como base de liquidación. Si lo desea, para su uso interno puede crear otros archivos con información más detallada.\nTodas las partidas indicadas en el presupuesto se deben reflejar en la descripción del proyecto para que quede clara la referencia al proyecto. \nLa tabla dispone de fórmulas que deben mantenerse.  \nMantenga el formato con dos decimales. \nSe recomienda redondear al alza las unidades en la medida de lo posible. Los costos se acuerdan con un valor de “hasta”. "]
[null,{"$f":"IF('Datos básicos'!C21=\"Sí\",CONCATENATE(\"Nota: Las celdas con fondo azul deben ser rellenados por \",IF('Datos básicos'!C3=\"\",\" el receptor\",'Datos básicos'!C3)),\"\")","v":""},{"$nulls":6},{"$f":"IF('Datos básicos'!C21=\"Sí\",\"Nota: se calculan automáticamente\",\"\")","v":""},null,null,{"$f":"IF('Datos básicos'!C5=\"Complemento al contrato\",\"VE\",\"NOVE\")","v":"NOVE"}]
[1,"Personal \n(Nota: Sólo pueden liquidarse costos directos de personal (costo bruto mensual del personal para el empleador). Los suplementos, como los costos generales de personal, que se calculan de manera prorrateada sobre el personal, no son subvencionables. Indique únicamente los títulos de las funciones, no los nombres de las personas.\n\na) Costes de colaboradores y colaboradoras asalariados del receptor (sólo empleados de su organización): la acreditación debe realizarse en forma de liquidaciones salariales o, en el caso de financiamientos parciales, en forma de liquidaciones salariales y registros de tiempos trabajados;  (véase el enlace en 1b).\n\nb) Costes de peritos y peritas integrados, quienes son personas autoempleadas o empleadas por un tercero y cedidas al receptor y que, por tanto, no trabajan sobre la base de un contrato de trabajo con el receptor, sino que lo hacen siguiendo las instrucciones / bajo la supervisión del receptor, toda vez que lo permita la ley aplicable al contrato de los peritos y peritas integrados. Para las formas de prueba, véase: Requisitos en cuanto al presupuesto y a la ejecución financiera (Anexo 3a).)",null,{"$f":"IF('Datos básicos'!C21=\"Sí\",CONCATENATE(\"Ayuda:\",Ejemplo!O5),\"\")","v":""},{"$nulls":4},{"$f":"SUM(I7:I43)","v":{"v":0,"d":"0.00 €"}},"\n\n\n\n\n\n\n\n\n\n\n\n\n\nDebe evitarse la financiación prorrateada de las partidas presupuestarias y aplicarse únicamente a los costes de personal y a los costes de reparto equitativo (costes \"Fair-Shared\").\n\n\nOtros costes incurridos en el curso de la ejecución del proyecto que no sean financiados por la GIZ deberán calcularse por separado, ya sea como contribución propia o como financiamiento de terceros.",null,{"$f":"IF(L5=\"VE\",\"ATENCIÓN: La GIZ no puede asumir los costos que se generan por las fluctuaciones cambiarias.\",\"\")","v":""}]
[{"$nulls":4},"Persona ",null,"Meses ",null,{"$f":"ROUND(D7*F7*H7,2)","v":{"v":0,"d":"0.00 €"}},null,null,"Sin cambios"]
[{"$nulls":4},"Persona ",null,"Meses ",null,{"$f":"ROUND(D8*F8*H8,2)","v":{"v":0,"d":"0.00 €"}},null,null,"Sin cambios"]
[{"$nulls":4},"Persona ",null,"Meses ",null,{"$f":"ROUND(D9*F9*H9,2)","v":{"v":0,"d":"0.00 €"}},null,null,"Sin cambios"]
[{"$nulls":4},"Persona ",null,"Meses ",null,{"v":0,"d":"0.00 €"},null,null,"Sin cambios"]
[{"$nulls":4},"Persona ",null,"Meses ",null,{"v":0,"d":"0.00 €"},null,null,"Sin cambios"]
[{"$nulls":4},"Persona ",null,"Meses ",null,{"v":0,"d":"0.00 €"},null,null,"Sin cambios"]
[{"$nulls":4},"Persona ",null,"Meses ",null,{"v":0,"d":"0.00 €"},null,null,"Sin cambios"]
[{"$nulls":4},"Persona ",null,"Meses ",null,{"v":0,"d":"0.00 €"},null,null,"Sin cambios"]
[{"$nulls":4},"Persona ",null,"Meses ",null,{"v":0,"d":"0.00 €"},null,null,"Sin cambios"]
[{"$nulls":4},"Persona ",null,"Meses ",null,{"v":0,"d":"0.00 €"},null,null,"Sin cambios"]
[{"$nulls":4},"Persona ",null,"Meses ",null,{"v":0,"d":"0.00 €"},null,null,"Sin cambios"]
[{"$nulls":4},"Persona ",null,"Meses ",null,{"v":0,"d":"0.00 €"},null,null,"Sin cambios"]
[{"$nulls":4},"Persona ",null,"Meses ",null,{"v":0,"d":"0.00 €"},null,null,"Sin cambios"]
[{"$nulls":4},"Persona ",null,"Meses ",null,{"v":0,"d":"0.00 €"},null,null,"Sin cambios"]
[{"$nulls":4},"Persona ",null,"Meses ",null,{"v":0,"d":"0.00 €"},null,null,"Sin cambios"]
[{"$nulls":4},"Persona ",null,"Meses ",null,{"v":0,"d":"0.00 €"},null,null,"Sin cambios"]
[{"$nulls":4},"Persona ",null,"Meses ",null,{"v":0,"d":"0.00 €"},null,null,"Sin cambios"]
[{"$nulls":4},"Persona ",null,"Meses ",null,{"v":0,"d":"0.00 €"},null,null,"Sin cambios"]
[{"$nulls":4},"Persona ",null,"Meses ",null,{"v":0,"d":"0.00 €"},null,null,"Sin cambios"]
[{"$nulls":4},"Persona ",null,"Meses ",null,{"v":0,"d":"0.00 €"},null,null,"Sin cambios"]
[{"$nulls":4},"Persona ",null,"Meses ",null,{"v":0,"d":"0.00 €"},null,null,"Sin cambios"]
[{"$nulls":4},"Persona ",null,"Meses ",null,{"v":0,"d":"0.00 €"},null,null,"Sin cambios"]
[{"$nulls":4},"Persona ",null,"Meses ",null,{"v":0,"d":"0.00 €"},null,null,"Sin cambios"]
[{"$nulls":4},"Persona ",null,"Meses ",null,{"v":0,"d":"0.00 €"},null,null,"Sin cambios"]
[{"$nulls":4},"Persona ",null,"Meses ",null,{"v":0,"d":"0.00 €"},null,null,"Sin cambios"]
[{"$nulls":4},"Persona ",null,"Meses ",null,{"v":0,"d":"0.00 €"},null,null,"Sin cambios"]
[{"$nulls":4},"Persona ",null,"Meses ",null,{"v":0,"d":"0.00 €"},null,null,"Sin cambios"]
[{"$nulls":4},"Persona ",null,"Meses ",null,{"v":0,"d":"0.00 €"},null,null,"Sin cambios"]
[{"$nulls":4},"Persona ",null,"Meses ",null,{"v":0,"d":"0.00 €"},null,null,"Sin cambios"]
[{"$nulls":4},"Persona ",null,"Meses ",null,{"v":0,"d":"0.00 €"},null,null,"Sin cambios"]
[{"$nulls":4},"Persona ",null,"Meses ",null,{"v":0,"d":"0.00 €"},null,null,"Sin cambios"]
[{"$nulls":4},"Persona ",null,"Meses ",null,{"v":0,"d":"0.00 €"},null,null,"Sin cambios"]
[{"$nulls":4},"Persona ",null,"Meses ",null,{"v":0,"d":"0.00 €"},null,null,"Sin cambios"]
[{"$nulls":4},"Persona ",null,"Meses ",null,{"v":0,"d":"0.00 €"},null,null,"Sin cambios"]
[{"$nulls":4},"Persona ",null,"Meses ",null,{"v":0,"d":"0.00 €"},null,null,"Sin cambios"]
[{"$nulls":4},"Persona ",null,"Meses ",null,{"$f":"ROUND(D42*F42*H42,2)","v":{"v":0,"d":"0.00 €"}},null,null,"Sin cambios"]
[{"$nulls":4},"Persona ",null,"Meses ",null,{"v":0,"d":"0.00 €"},null,null,"Sin cambios"]
[2,"Servicios externos (tipo/contenido del servicio)\n",null,{"$f":"IF('Datos básicos'!C21=\"Sí\",CONCATENATE(\"Ayuda:\",Ejemplo!O11),\"\")","v":""},{"$nulls":4},{"$f":"SUM(I45:I73)","v":{"v":0,"d":"0.00 €"}}]
[{"$nulls":3},"Contrato/contratos ",{"$nulls":4},{"$f":"ROUND(H45,2)","v":{"v":0,"d":"0.00 €"}},null,null,"Sin cambios"]
[{"$nulls":3},"Contrato/contratos ",{"$nulls":4},{"$f":"ROUND(H46,2)","v":{"v":0,"d":"0.00 €"}},null,null,"Sin cambios"]
[{"$nulls":3},"Contrato/contratos ",{"$nulls":4},{"v":0,"d":"0.00 €"},null,null,"Sin cambios"]
[{"$nulls":3},"Contrato/contratos ",{"$nulls":4},{"v":0,"d":"0.00 €"},null,null,"Sin cambios"]
[{"$nulls":3},"Contrato/contratos ",{"$nulls":4},{"v":0,"d":"0.00 €"},null,null,"Sin cambios"]
[{"$nulls":3},"Contrato/contratos ",{"$nulls":4},{"v":0,"d":"0.00 €"},null,null,"Sin cambios"]
[{"$nulls":3},"Contrato/contratos ",{"$nulls":4},{"v":0,"d":"0.00 €"},null,null,"Sin cambios"]
[{"$nulls":3},"Contrato/contratos ",{"$nulls":4},{"v":0,"d":"0.00 €"},null,null,"Sin cambios"]
[{"$nulls":3},"Contrato/contratos ",{"$nulls":4},{"v":0,"d":"0.00 €"},null,null,"Sin cambios"]
[{"$nulls":3},"Contrato/contratos ",{"$nulls":4},{"v":0,"d":"0.00 €"},null,null,"Sin cambios"]
[{"$nulls":3},"Contrato/contratos ",{"$nulls":4},{"v":0,"d":"0.00 €"},null,null,"Sin cambios"]
[{"$nulls":3},"Contrato/contratos ",{"$nulls":4},{"v":0,"d":"0.00 €"},null,null,"Sin cambios"]
[{"$nulls":3},"Contrato/contratos ",{"$nulls":4},{"v":0,"d":"0.00 €"},null,null,"Sin cambios"]
[{"$nulls":3},"Contrato/contratos ",{"$nulls":4},{"v":0,"d":"0.00 €"},null,null,"Sin cambios"]
[{"$nulls":3},"Contrato/contratos ",{"$nulls":4},{"v":0,"d":"0.00 €"},null,null,"Sin cambios"]
[{"$nulls":3},"Contrato/contratos ",{"$nulls":4},{"v":0,"d":"0.00 €"},null,null,"Sin cambios"]
[{"$nulls":3},"Contrato/contratos ",{"$nulls":4},{"v":0,"d":"0.00 €"},null,null,"Sin cambios"]
[{"$nulls":3},"Contrato/contratos ",{"$nulls":4},{"v":0,"d":"0.00 €"},null,null,"Sin cambios"]
[{"$nulls":3},"Contrato/contratos ",{"$nulls":4},{"v":0,"d":"0.00 €"},null,null,"Sin cambios"]
[{"$nulls":3},"Contrato/contratos ",{"$nulls":4},{"v":0,"d":"0.00 €"},null,null,"Sin cambios"]
[{"$nulls":3},"Contrato/contratos ",{"$nulls":4},{"v":0,"d":"0.00 €"},null,null,"Sin cambios"]
[{"$nulls":3},"Contrato/contratos ",{"$nulls":4},{"v":0,"d":"0.00 €"},null,null,"Sin cambios"]
[{"$nulls":3},"Contrato/contratos ",{"$nulls":4},{"v":0,"d":"0.00 €"},null,null,"Sin cambios"]
[{"$nulls":3},"Contrato/contratos ",{"$nulls":4},{"v":0,"d":"0.00 €"},null,null,"Sin cambios"]
[{"$nulls":3},"Contrato/contratos ",{"$nulls":4},{"v":0,"d":"0.00 €"},null,null,"Sin cambios"]
[{"$nulls":3},"Contrato/contratos ",{"$nulls":4},{"v":0,"d":"0.00 €"},null,null,"Sin cambios"]
[{"$nulls":3},"Contrato/contratos ",{"$nulls":4},{"v":0,"d":"0.00 €"},null,null,"Sin cambios"]
[{"$nulls":3},"Contrato/contratos ",{"$nulls":4},{"v":0,"d":"0.00 €"},null,null,"Sin cambios"]
[{"$nulls":3},"Contrato/contratos ",{"$nulls":4},{"$f":"ROUND(H73,2)","v":{"v":0,"d":"0.00 €"}},null,null,"Sin cambios"]
[3,"Costos de transporte / gastos de viaje",null,{"$f":"IF('Datos básicos'!C21=\"Sí\",CONCATENATE(\"Ayuda:\",Ejemplo!O22),\"\")","v":""},{"$nulls":4},{"$f":"SUM(I75:I92)","v":{"v":0,"d":"0.00 €"}}]
[{"$nulls":8},{"$f":"ROUND(H75,2)","v":{"v":0,"d":"0.00 €"}},null,null,"Sin cambios"]
[{"$nulls":8},{"$f":"ROUND(H76,2)","v":{"v":0,"d":"0.00 €"}},null,null,"Sin cambios"]
[{"$nulls":8},{"v":0,"d":"0.00 €"},null,null,"Sin cambios"]
[{"$nulls":8},{"v":0,"d":"0.00 €"},null,null,"Sin cambios"]
[{"$nulls":8},{"v":0,"d":"0.00 €"},null,null,"Sin cambios"]
[{"$nulls":8},{"v":0,"d":"0.00 €"},null,null,"Sin cambios"]
[{"$nulls":8},{"v":0,"d":"0.00 €"},null,null,"Sin cambios"]
[{"$nulls":8},{"v":0,"d":"0.00 €"},null,null,"Sin cambios"]
[{"$nulls":8},{"v":0,"d":"0.00 €"},null,null,"Sin cambios"]
[{"$nulls":8},{"v":0,"d":"0.00 €"},null,null,"Sin cambios"]
[{"$nulls":8},{"v":0,"d":"0.00 €"},null,null,"Sin cambios"]
[{"$nulls":8},{"v":0,"d":"0.00 €"},null,null,"Sin cambios"]
[{"$nulls":8},{"v":0,"d":"0.00 €"},null,null,"Sin cambios"]
[{"$nulls":8},{"v":0,"d":"0.00 €"},null,null,"Sin cambios"]
[{"$nulls":8},{"v":0,"d":"0.00 €"},null,null,"Sin cambios"]
[{"$nulls":8},{"v":0,"d":"0.00 €"},null,null,"Sin cambios"]
[{"$nulls":8},{"v":0,"d":"0.00 €"},null,null,"Sin cambios"]
[{"$nulls":8},{"$f":"ROUND(H92,2)","v":{"v":0,"d":"0.00 €"}},null,null,"Sin cambios"]
[4,"Compensación de CO2 por viajes en avión",null,{"$f":"IF('Datos básicos'!C21=\"Sí\",CONCATENATE(\"Ayuda: \",Ejemplo!O30),\"\")","v":""},{"$nulls":4},{"$f":"SUM(I94:I98)","v":{"v":0,"d":"0.00 €"}}]
[{"$nulls":3},"Compensación ",{"$nulls":4},{"$f":"ROUND(H94,2)","v":{"v":0,"d":"0.00 €"}},null,null,"Sin cambios"]
[{"$nulls":3},"Compensación ",{"$nulls":4},{"$f":"ROUND(H95,2)","v":{"v":0,"d":"0.00 €"}},null,null,"Sin cambios"]
[{"$nulls":3},"Compensación ",{"$nulls":4},{"v":0,"d":"0.00 €"},null,null,"Sin cambios"]
[{"$nulls":3},"Compensación ",{"$nulls":4},{"v":0,"d":"0.00 €"},null,null,"Sin cambios"]
[{"$nulls":3},"Compensación ",{"$nulls":4},{"v":0,"d":"0.00 €"},null,null,"Sin cambios"]
[5,"Adquisición de equipos y materiales",null,{"$f":"IF('Datos básicos'!C21=\"Sí\",CONCATENATE(\"Ayuda:\",Ejemplo!O37),\"\")","v":""},{"$nulls":4},{"$f":"SUM(I100:I115)","v":{"v":0,"d":"0.00 €"}},null,{"$f":"IF(I161>400000,1,0)+(IF(I99>=(I161/2),1,0))","v":1}]
[{"$nulls":8},{"$f":"ROUND(H100,2)","v":{"v":0,"d":"0.00 €"}},null,null,"Sin cambios"]
[{"$nulls":8},{"$f":"ROUND(H101,2)","v":{"v":0,"d":"0.00 €"}},null,null,"Sin cambios"]
[{"$nulls":8},{"v":0,"d":"0.00 €"},null,null,"Sin cambios"]
[{"$nulls":8},{"v":0,"d":"0.00 €"},null,null,"Sin cambios"]
[{"$nulls":8},{"v":0,"d":"0.00 €"},null,null,"Sin cambios"]
[{"$nulls":8},{"v":0,"d":"0.00 €"},null,null,"Sin cambios"]
[{"$nulls":8},{"v":0,"d":"0.00 €"},null,null,"Sin cambios"]
[{"$nulls":8},{"v":0,"d":"0.00 €"},null,null,"Sin cambios"]
[{"$nulls":8},{"v":0,"d":"0.00 €"},null,null,"Sin cambios"]
[{"$nulls":8},{"v":0,"d":"0.00 €"},null,null,"Sin cambios"]
[{"$nulls":8},{"v":0,"d":"0.00 €"},null,null,"Sin cambios"]
[{"$nulls":8},{"v":0,"d":"0.00 €"},null,null,"Sin cambios"]
[{"$nulls":8},{"v":0,"d":"0.00 €"},null,null,"Sin cambios"]
[{"$nulls":8},{"v":0,"d":"0.00 €"},null,null,"Sin cambios"]
[{"$nulls":8},{"v":0,"d":"0.00 €"},null,null,"Sin cambios"]
[{"$nulls":8},{"v":0,"d":"0.00 €"},null,null,"Sin cambios"]
[6,"Otros costos / consumibles",null,{"$f":"IF('Datos básicos'!C21=\"Sí\",CONCATENATE(\"Ayuda:\",Ejemplo!O48),\"\")","v":""},{"$nulls":4},{"$f":"SUM(I117:I132)","v":{"v":0,"d":"0.00 €"}}]
[{"$nulls":8},{"$f":"ROUND(H117,2)","v":{"v":0,"d":"0.00 €"}},null,null,"Sin cambios"]
[{"$nulls":8},{"$f":"ROUND(H118,2)","v":{"v":0,"d":"0.00 €"}},null,null,"Sin cambios"]
[{"$nulls":8},{"v":0,"d":"0.00 €"},null,null,"Sin cambios"]
[{"$nulls":8},{"v":0,"d":"0.00 €"},null,null,"Sin cambios"]
[{"$nulls":8},{"v":0,"d":"0.00 €"},null,null,"Sin cambios"]
[{"$nulls":8},{"v":0,"d":"0.00 €"},null,null,"Sin cambios"]
[{"$nulls":8},{"v":0,"d":"0.00 €"},null,null,"Sin cambios"]
[{"$nulls":8},{"v":0,"d":"0.00 €"},null,null,"Sin cambios"]
[{"$nulls":8},{"v":0,"d":"0.00 €"},null,null,"Sin cambios"]
[{"$nulls":8},{"v":0,"d":"0.00 €"},null,null,"Sin cambios"]
[{"$nulls":8},{"v":0,"d":"0.00 €"},null,null,"Sin cambios"]
[{"$nulls":8},{"v":0,"d":"0.00 €"},null,null,"Sin cambios"]
[{"$nulls":8},{"v":0,"d":"0.00 €"},null,null,"Sin cambios"]
[{"$nulls":8},{"v":0,"d":"0.00 €"},null,null,"Sin cambios"]
[{"$nulls":8},{"v":0,"d":"0.00 €"},null,null,"Sin cambios"]
[{"$nulls":8},{"v":0,"d":"0.00 €"},null,null,"Sin cambios"]
[7,"Recursos para apoyar directamente a beneficiarios terceros\n(Indicación: Esta línea presupuestaria se refiere exclusivamente a los aportes financieros a beneficiarios terceros. Las contribuciones no podrán utilizarse para la adquisición de medicamentos, pesticidas y/o fertilizantes minerales. El procedimiento de selección de beneficiarios terceros debe explicarse en la descripción del proyecto. Pruebas: véase la línea subpresupuestaria.)",null,{"$f":"IF('Datos básicos'!C21=\"Sí\",CONCATENATE(\"Ayuda:\",Ejemplo!O59),\"\")","v":""},{"$nulls":4},{"$f":"SUM(I134:I143)","v":{"v":0,"d":"0.00 €"}},null,null,{"$f":"IF(L5=\"VE\",\"ATENCIÓN: La GIZ no puede asumir los costos que se generan por las fluctuaciones cambiarias.\",\"\")","v":""}]
[null,"XXX (facturación contra ...)",{"$nulls":6},{"$f":"ROUND(D134*H134,2)","v":{"v":0,"d":"0.00 €"}},null,null,"Sin cambios"]
[null,"XXX (facturación contra ...)",{"$nulls":6},{"$f":"ROUND(D135*H135,2)","v":{"v":0,"d":"0.00 €"}},null,null,"Sin cambios"]
[null,"XXX (facturación contra ...)",{"$nulls":6},{"v":0,"d":"0.00 €"},null,null,"Sin cambios"]
[null,"XXX (facturación contra ...)",{"$nulls":6},{"v":0,"d":"0.00 €"},null,null,"Sin cambios"]
[null,"XXX (facturación contra ...)",{"$nulls":6},{"v":0,"d":"0.00 €"},null,null,"Sin cambios"]
[null,"XXX (facturación contra ...)",{"$nulls":6},{"v":0,"d":"0.00 €"},null,null,"Sin cambios"]
[null,"XXX (facturación contra ...)",{"$nulls":6},{"v":0,"d":"0.00 €"},null,null,"Sin cambios"]
[null,"XXX (facturación contra ...)",{"$nulls":6},{"v":0,"d":"0.00 €"},null,null,"Sin cambios"]
[null,"XXX (facturación contra ...)",{"$nulls":6},{"v":0,"d":"0.00 €"},null,null,"Sin cambios"]
[null,"XXX (facturación contra ...)",{"$nulls":6},{"$f":"ROUND(D143*H143,2)","v":{"v":0,"d":"0.00 €"}},null,null,"Sin cambios"]
[8,"Costes de participación equitativa (costes \"Fair-Shared\")",null,{"$f":"IF('Datos básicos'!C21=\"Sí\",CONCATENATE(\"Ayuda:\",Ejemplo!O64),\"\")","v":""},{"$nulls":4},{"$f":"SUM(I145:I149)","v":{"v":0,"d":"0.00 €"}}]
[{"$nulls":8},{"$f":"ROUND(H145,2)","v":{"v":0,"d":"0.00 €"}},null,null,"Sin cambios"]
[{"$nulls":8},{"$f":"ROUND(H146,2)","v":{"v":0,"d":"0.00 €"}},null,null,"Sin cambios"]
[{"$nulls":8},{"v":0,"d":"0.00 €"},null,null,"Sin cambios"]
[{"$nulls":8},{"v":0,"d":"0.00 €"},null,null,"Sin cambios"]
[{"$nulls":8},{"v":0,"d":"0.00 €"},null,null,"Sin cambios"]
[null,"Subtotal costos directos",{"$nulls":6},{"$f":"I6+I44+I74+I93+I99+I116+I133+I144","v":{"v":0,"d":"0.00 €"}}]
[9,"Costos generales de administración ",null,{"$f":"IF('Datos básicos'!C21=\"Sí\",CONCATENATE(\"Ayuda:\",Ejemplo!O68),\"\")","v":""},{"$nulls":4},{"$f":"I152","v":{"v":0,"d":"0.00 €"}}]
[null,"Costos generales de administración (sobre las líneas presupuestarias 1-X)",null,{"$f":"'Datos básicos'!E8","v":{"v":0,"d":"0.00%"}},{"$nulls":3},{"$f":"I150","v":{"v":0,"d":"0.00 €"}},{"$f":"ROUND(D152*H152,2)","v":{"v":0,"d":"0.00 €"}},null,null,"Sin cambios"]
[null,"Subtotal financiamiento de la GIZ (hasta / contra justificante)*\n(costos directos + costos generales de administración)",{"$nulls":6},{"$f":"I150+I151","v":{"v":0,"d":"0.00 €"}}]
[10,"Transferencia de financiamientos a receptores terceros —debe presentarse un presupuesto detallado—",null,{"$f":"IF('Datos básicos'!C21=\"Sí\",CONCATENATE(\"Ayuda:\",Ejemplo!O71),\"\")","v":""},{"$nulls":4},{"$f":"SUM(I155:I160)","v":{"v":0,"d":"0.00 €"}}]
[null,"XYZ (nombre del receptor tercero) ",null,"Transferencia",{"$nulls":3},{"$f":"'Transferencia de financiamiento'!I144","v":{"v":0,"d":"0.00 €"}},{"$f":"H155","v":{"v":0,"d":"0.00 €"}},null,null,"Sin cambios"]
[null,"XYZ (nombre del receptor tercero) ",null,"Transferencia",{"$nulls":3},{"v":0,"d":"0.00 €"},{"$f":"H156","v":{"v":0,"d":"0.00 €"}},null,null,"Sin cambios"]
[null,"XYZ (nombre del receptor tercero) ",null,"Transferencia",{"$nulls":3},{"v":0,"d":"0.00 €"},{"v":0,"d":"0.00 €"},null,null,"Sin cambios"]
[null,"XYZ (nombre del receptor tercero) ",null,"Transferencia",{"$nulls":3},{"v":0,"d":"0.00 €"},{"v":0,"d":"0.00 €"},null,null,"Sin cambios"]
[null,"XYZ (nombre del receptor tercero) ",null,"Transferencia",{"$nulls":3},{"v":0,"d":"0.00 €"},{"v":0,"d":"0.00 €"},null,null,"Sin cambios"]
[null,"XYZ (nombre del receptor tercero) ",null,"Transferencia",{"$nulls":3},{"v":0,"d":"0.00 €"},{"v":0,"d":"0.00 €"},null,"Porcentajes ","Sin cambios"]
[null,"Contribución de la GIZ (hasta / contra justificante)*",{"$nulls":6},{"$f":"I153+I154","v":{"v":0,"d":"0.00 €"}},null,{"$f":"IFERROR(I161/$I$171,\"\")","v":""}]
[11,"Contribución propio / financiamiento de terceros",null,{"$f":"IF('Datos básicos'!C21=\"Sí\",CONCATENATE(\"Ayuda:\",Ejemplo!O76),\"\")","v":""},{"$nulls":5},{"$f":"SUM(J163:J170)","v":{"v":0,"d":"0.00 €"}}]
[null,{"$f":"_xlfn.IFS('Datos básicos'!C9=\"No\",\"sin fondos financieros propios\",'Datos básicos'!C9=\"Sí\",'Datos básicos'!C3,'Datos básicos'!C9=\"Seleccionar\", \"Introduzca primero los datos básicos\",TRUE,\"\")","v":"Introduzca primero los datos básicos"},null,"Contribución",{"$nulls":3},{"$f":"IF('Datos básicos'!C9=\"Sí\",'Datos básicos'!E9,\"\")","v":""},null,{"$f":"H163","v":""},{"$f":"IFERROR(J163/$I$171,\"\")","v":""},"Sin cambios"]
[null,{"$f":"_xlfn.IFS('Datos básicos'!C10=0,\"No financiamanto de terceros\",'Datos básicos'!C10= \"Seleccionar\", \"Introduzca primero los datos básicos\",'Datos básicos'!C10>0,'Datos básicos'!E10,TRUE,\"\")","v":"No financiamanto de terceros"},null,"Contribución",{"$nulls":3},{"$f":"_xlfn.IFS('Datos básicos'!$C$10=\"Auswählen\", \"\",'Datos básicos'!$C$10>0,'Datos básicos'!G10, TRUE,\"\")","v":""},null,{"$f":"H164","v":""},{"$f":"IFERROR(J164/$I$171,\"\")","v":""},"Sin cambios"]
[null,{"$f":"_xlfn.IFS('Datos básicos'!C10=0,\"No financiamanto de terceros\",'Datos básicos'!C10= \"Seleccionar\", \"Introduzca primero los datos básicos\",'Datos básicos'!C10>0,'Datos básicos'!E11,TRUE,\"\")","v":"No financiamanto de terceros"},null,"Contribución",{"$nulls":3},{"$f":"_xlfn.IFS('Datos básicos'!$C$10=\"Auswählen\", \"\",'Datos básicos'!$C$10>0,'Datos básicos'!G11, TRUE,\"\")","v":""},null,"","","Sin cambios"]
[null,{"$f":"_xlfn.IFS('Datos básicos'!C10=0,\"No financiamanto de terceros\",'Datos básicos'!C10= \"Seleccionar\", \"Introduzca primero los datos básicos\",'Datos básicos'!C10>0,'Datos básicos'!E12,TRUE,\"\")","v":"No financiamanto de terceros"},null,"Contribución",{"$nulls":3},{"$f":"_xlfn.IFS('Datos básicos'!$C$10=\"Auswählen\", \"\",'Datos básicos'!$C$10>0,'Datos básicos'!G12, TRUE,\"\")","v":""},null,"",{"$f":"IFERROR(J166/$I$171,\"\")","v":""},"Sin cambios"]
[null,{"$f":"_xlfn.IFS('Datos básicos'!C10=0,\"No financiamanto de terceros\",'Datos básicos'!C10= \"Seleccionar\", \"Introduzca primero los datos básicos\",'Datos básicos'!C10>0,'Datos básicos'!E13,TRUE,\"\")","v":"No financiamanto de terceros"},null,"Contribución",{"$nulls":3},{"$f":"_xlfn.IFS('Datos básicos'!$C$10=\"Auswählen\", \"\",'Datos básicos'!$C$10>0,'Datos básicos'!G13, TRUE,\"\")","v":""},null,"","","Sin cambios"]
[null,{"$f":"_xlfn.IFS('Datos básicos'!C10=0,\"No financiamanto de terceros\",'Datos básicos'!C10= \"Seleccionar\", \"Introduzca primero los datos básicos\",'Datos básicos'!C10>0,'Datos básicos'!E14,TRUE,\"\")","v":"No financiamanto de terceros"},null,"Contribución",{"$nulls":3},{"$f":"_xlfn.IFS('Datos básicos'!$C$10=\"Auswählen\", \"\",'Datos básicos'!$C$10>0,'Datos básicos'!G14, TRUE,\"\")","v":""},null,"","","Sin cambios"]
[null,{"$f":"_xlfn.IFS('Datos básicos'!C10=0,\"No financiamanto de terceros\",'Datos básicos'!C10= \"Seleccionar\", \"Introduzca primero los datos básicos\",'Datos básicos'!C10>0,'Datos básicos'!E15,TRUE,\"\")","v":"No financiamanto de terceros"},null,"Contribución",{"$nulls":3},{"$f":"_xlfn.IFS('Datos básicos'!$C$10=\"Auswählen\", \"\",'Datos básicos'!$C$10>0,'Datos básicos'!G15, TRUE,\"\")","v":""},null,"","","Sin cambios"]
[null,{"$f":"_xlfn.IFS('Datos básicos'!C10=0,\"No financiamanto de terceros\",'Datos básicos'!C10= \"Seleccionar\", \"Introduzca primero los datos básicos\",'Datos básicos'!C10>0,'Datos básicos'!E16,TRUE,\"\")","v":"No financiamanto de terceros"},null,"Contribución",{"$nulls":3},{"$f":"_xlfn.IFS('Datos básicos'!$C$10=\"Auswählen\", \"\",'Datos básicos'!$C$10>0,'Datos básicos'!G16, TRUE,\"\")","v":""},null,{"$f":"H170","v":""},{"$f":"IFERROR(J170/$I$171,\"\")","v":""},"Sin cambios"]
[null,"Financiamiento total ",{"$nulls":6},{"$f":"I161+J162","v":{"v":0,"d":"0.00 €"}},null,{"$f":"SUM(K161:K170)","v":{"v":0,"d":"0.00%"}}]
[]
[null,"*Todas las líneas presupuestarias (excepto los costos generales de administración) deben liquidarse contra justificante."]
[]
[null,"Información: En el caso de que esté previsto financiar adjudicaciones para servicios externos y/o para equipos y materiales y/o suministros con cargo a fondos de la GIZ, deben observarse las directrices de adjudicación relevantes en virtud del texto del contrato."]
[]
[null,"Los beneficios del receptor no se financian. "]
[]
[null,"En caso de complementos al contrato: Realice las adaptaciones presupuestarias sobre la base del presupuesto acordado contractualmente por última vez y destaque los cambios en color. La GIZ no puede asumir los costos que se generan por las fluctuaciones cambiarias."]

{"sheet":"Transferencia de financiamiento","index":2,"n_rows":152,"n_cols":14,"rows_kept":152,"merged":[[0,0,0,1],[0,3,0,8],[1,0,1,9],[3,1,3,7],[3,8,3,9],[4,3,4,7],[4,9,139,9],[42,3,42,7],[43,3,43,6],[44,3,44,6],[45,3,45,6],[46,3,46,6],[47,3,47,6],[48,3,48,6],[49,3,49,6],[50,3,50,6],[51,3,51,6],[52,3,52,6],[53,3,53,6],[54,3,54,6],[55,3,55,6],[56,3,56,6],[57,3,57,6],[58,3,58,6],[59,3,59,6],[60,3,60,7],[61,3,61,6],[62,3,62,6],[63,3,63,6],[64,3,64,6],[65,3,65,6],[66,3,66,6],[67,3,67,6],[68,3,68,6],[69,3,69,6],[70,3,70,6],[71,3,71,6],[72,3,72,6],[73,3,73,6],[74,3,74,6],[75,3,75,6],[76,3,76,6],[77,3,77,7],[78,3,78,6],[79,3,79,6],[80,3,80,6],[81,3,81,6],[82,3,82,6],[83,3,83,6],[84,3,84,6],[85,3,85,6],[86,3,86,6],[87,3,87,6],[88,3,88,6],[89,3,89,6],[90,3,90,7],[91,3,91,6],[92,3,92,6],[93,3,93,6],[94,3,94,6],[95,3,95,6],[96,3,96,6],[97,3,97,6],[98,3,98,6],[99,3,99,6],[100,3,100,6],[101,3,101,6],[102,3,102,6],[103,3,103,6],[104,3,104,6],[105,3,105,6],[106,3,106,6],[107,3,107,7],[108,3,108,6],[109,3,109,6],[110,3,110,6],[111,3,111,6],[112,3,112,6],[113,3,113,6],[114,3,114,6],[115,3,115,6],[116,3,116,6],[117,3,117,6],[118,3,118,6],[119,3,119,6],[120,3,120,6],[121,3,121,6],[122,3,122,6],[123,3,123,6],[124,3,124,7],[125,4,125,6],[126,4,126,6],[127,4,127,6],[128,4,128,6],[129,4,129,6],[130,4,130,6],[131,3,131,7],[132,3,132,6],[133,3,133,6],[134,3,134,6],[135,3,135,6],[136,3,136,6],[137,3,137,6],[138,3,138,6],[139,1,139,7],[140,3,140,7],[141,4,141,6],[142,1,142,7],[143,1,143,7],[145,1,145,9],[147,1,147,9],[148,1,148,9],[149,1,149,9],[151,1,151,9]]}
["Presupuesto - Anexo 1",null,null,"Nombre del receptor tercero:",{"$nulls":5},{"$f":"'Datos básicos'!C23","v":"00:00:00"},{"$nulls":3},"sin cambios"]
[{"$f":"IF(NOT(ISBLANK('Datos básicos'!C7)),CONCATENATE(\"Número del contrato:\",'Datos básicos'!C7),\"\")","v":""},{"$nulls":12},"cambios"]
[null,"Descripción","Có-\ndigo","Canti-dad","Unidad (persona)","Número","Unidad (p. ej., mes, contrato, vuelo…)","Subvencio-nable hasta  \nen EUR \n(precio por unidad) ","Contribución\ntotal de la GIZ \nen EUR (hasta)","Contribución propia / financiamiento de terceros \nen EUR (hasta) ",null,{"$f":"IF($L$4=\"VE\",CONCATENATE(\"En el caso de ajustes contractuales\",CHAR(10),\"¿Ha cambiado la línea presupuestaria?\"),\"\")","v":""}]
[null,{"$f":"IF('Datos básicos'!C21=\"Sí\",\"Nota: Las celdas con fondo azul deben ser rellenados por el receptor\",\"\")","v":""},{"$nulls":6},{"$f":"IF('Datos básicos'!C21=\"Sí\",\"Nota: se calculan automáticamente\",\"\")","v":""},null,null,{"$f":"IF('Datos básicos'!C5=\"Complemento al contrato\",\"VE\",\"NOVE\")","v":"NOVE"}]
[1,"Personal\n(Nota: Sólo pueden liquidarse costos directos de personal (costo bruto mensual del personal para el empleador). Los suplementos, como los costos generales de personal, que se calculan de manera prorrateada sobre el personal, no son subvencionables. Indique únicamente los títulos de las funciones, no los nombres de las personas.\n\na) Costes de colaboradores y colaboradoras asalariados del receptor (sólo empleados de su organización): la acreditación debe realizarse en forma de liquidaciones salariales o, en el caso de financiamientos parciales, en forma de liquidaciones salariales y registros de tiempos trabajados;  (véase el enlace en 1b).\n\nb) Costes de peritos y peritas integrados, quienes son personas autoempleadas o empleadas por un tercero y cedidas al receptor y que, por tanto, no trabajan sobre la base de un contrato de trabajo con el receptor, sino que lo hacen siguiendo las instrucciones / bajo la supervisión del receptor, toda vez que lo permita la ley aplicable al contrato de los peritos y peritas integrados. Para las formas de prueba, véase: Requisitos en cuanto al presupuesto y a la ejecución financiera (Anexo 3a).)",null,{"$f":"IF('Datos básicos'!C21=\"Sí\",CONCATENATE(\"Ayuda:\",Ejemplo!O5),\"\")","v":""},{"$nulls":4},{"$f":"SUM(I6:I42)","v":{"v":0,"d":"0.00 €"}},"\n\n\n\n\n\n\n\n\n\n\n\n\n\nDebe evitarse la financiación prorrateada de las partidas presupuestarias y aplicarse únicamente a los costes de personal y a los costes de reparto equitativo (costes \"Fair-Shared\").\n\n\nOtros costes incurridos en el curso de la ejecución del proyecto que no sean financiados por la GIZ deberán calcularse por separado, ya sea como contribución propia o como financiamiento de terceros.",{"$f":"IF(SUM(I5,#REF!,I43)>0.4*I143,1,0)","v":{"$error":"#REF!"}},{"$f":"IF(L4=\"VE\",\"ATENCIÓN: La GIZ no puede asumir los costos que se generan por las fluctuaciones cambiarias.\",\"\")","v":""}]
[{"$nulls":4},"Persona",null,"Meses",null,{"$f":"ROUND(D6*F6*H6,2)","v":{"v":0,"d":"0.00 €"}},null,null,"sin cambios"]
[{"$nulls":4},"Persona",null,"Meses",null,{"$f":"ROUND(D7*F7*H7,2)","v":{"v":0,"d":"0.00 €"}},null,null,"Sin cambios"]
[{"$nulls":4},"Persona",null,"Meses",null,{"v":0,"d":"0.00 €"},null,null,"sin cambios"]
[{"$nulls":4},"Persona",null,"Meses",null,{"v":0,"d":"0.00 €"},null,null,"sin cambios"]
[{"$nulls":4},"Persona",null,"Meses",null,{"$f":"ROUND(D10*F10*H10,2)","v":{"v":0,"d":"0.00 €"}},null,null,"sin cambios"]
[{"$nulls":4},"Persona",null,"Meses",null,{"v":0,"d":"0.00 €"},null,null,"Sin cambios"]
[{"$nulls":4},"Persona",null,"Meses",null,{"v":0,"d":"0.00 €"},null,null,"Sin cambios"]
[{"$nulls":4},"Persona",null,"Meses",null,{"v":0,"d":"0.00 €"},null,null,"Sin cambios"]
[{"$nulls":4},"Persona",null,"Meses",null,{"v":0,"d":"0.00 €"},null,null,"Sin cambios"]
[{"$nulls":4},"Persona",null,"Meses",null,{"v":0,"d":"0.00 €"},null,null,"Sin cambios"]
[{"$nulls":4},"Persona",null,"Meses",null,{"$f":"ROUND(D16*F16*H16,2)","v":{"v":0,"d":"0.00 €"}},null,null,"Sin cambios"]
[{"$nulls":4},"Persona",null,"Meses",null,{"v":0,"d":"0.00 €"},null,null,"Sin cambios"]
[{"$nulls":4},"Persona",null,"Meses",null,{"v":0,"d":"0.00 €"},null,null,"sin cambios"]
[{"$nulls":4},"Persona",null,"Meses",null,{"$f":"ROUND(D19*F19*H19,2)","v":{"v":0,"d":"0.00 €"}},null,null,"Sin cambios"]
[{"$nulls":4},"Persona",null,"Meses",null,{"v":0,"d":"0.00 €"},null,null,"Sin cambios"]
[{"$nulls":4},"Persona",null,"Meses",null,{"v":0,"d":"0.00 €"},null,null,"Sin cambios"]
[{"$nulls":4},"Persona",null,"Meses",null,{"v":0,"d":"0.00 €"},null,null,"Sin cambios"]
[{"$nulls":4},"Persona",null,"Meses",null,{"v":0,"d":"0.00 €"},null,null,"Sin cambios"]
[{"$nulls":4},"Persona",null,"Meses",null,{"v":0,"d":"0.00 €"},null,null,"sin cambios"]
[{"$nulls":4},"Persona",null,"Meses",null,{"v":0,"d":"0.00 €"},null,null,"Sin cambios"]
[{"$nulls":4},"Persona",null,"Meses",null,{"v":0,"d":"0.00 €"},null,null,"Sin cambios"]
[{"$nulls":4},"Persona",null,"Meses",null,{"v":0,"d":"0.00 €"},null,null,"Sin cambios"]
[{"$nulls":4},"Persona",null,"Meses",null,{"v":0,"d":"0.00 €"},null,null,"Sin cambios"]
[{"$nulls":4},"Persona",null,"Meses",null,{"v":0,"d":"0.00 €"},null,null,"Sin cambios"]
[{"$nulls":4},"Persona",null,"Meses",null,{"v":0,"d":"0.00 €"},null,null,"Sin cambios"]
[{"$nulls":4},"Persona",null,"Meses",null,{"v":0,"d":"0.00 €"},null,null,"Sin cambios"]
[{"$nulls":4},"Persona",null,"Meses",null,{"v":0,"d":"0.00 €"},null,null,"sin cambios"]
[{"$nulls":4},"Persona",null,"Meses",null,{"v":0,"d":"0.00 €"},null,null,"Sin cambios"]
[{"$nulls":4},"Persona",null,"Meses",null,{"v":0,"d":"0.00 €"},null,null,"sin cambios"]
[{"$nulls":4},"Persona",null,"Meses",null,{"v":0,"d":"0.00 €"},null,null,"Sin cambios"]
[{"$nulls":4},"Persona",null,"Meses",null,{"v":0,"d":"0.00 €"},null,null,"Sin cambios"]
[{"$nulls":4},"Persona",null,"Meses",null,{"v":0,"d":"0.00 €"},null,null,"Sin cambios"]
[{"$nulls":4},"Persona",null,"Meses",null,{"v":0,"d":"0.00 €"},null,null,"sin cambios"]
[{"$nulls":4},"Persona",null,"Meses",null,{"v":0,"d":"0.00 €"},null,null,"sin cambios"]
[{"$nulls":4},"Persona",null,"Meses",null,{"v":0,"d":"0.00 €"},null,null,"Sin cambios"]
[{"$nulls":4},"Persona",null,"Meses",null,{"v":0,"d":"0.00 €"},null,null,"Sin cambios"]
[{"$nulls":4},"Persona",null,"Meses",null,{"v":0,"d":"0.00 €"},null,null,"Sin cambios"]
[2,"Servicios externos (tipo/contenido del servicio)\n",null,{"$f":"IF('Datos básicos'!C21=\"Sí\",CONCATENATE(\"Ayuda:\",Ejemplo!O11),\"\")","v":""},{"$nulls":4},{"$f":"SUM(I44:I60)","v":{"v":0,"d":"0.00 €"}}]
[{"$nulls":3},"Contrato/contratos ",{"$nulls":4},{"$f":"ROUND(H44,2)","v":{"v":0,"d":"0.00 €"}},null,null,"sin cambios"]
[{"$nulls":3},"Contrato/contratos ",{"$nulls":4},{"$f":"ROUND(H45,2)","v":{"v":0,"d":"0.00 €"}},null,null,"sin cambios"]
[{"$nulls":3},"Contrato/contratos ",{"$nulls":4},{"v":0,"d":"0.00 €"},null,null,"Sin cambios"]
[{"$nulls":3},"Contrato/contratos ",{"$nulls":4},{"v":0,"d":"0.00 €"},null,null,"sin cambios"]
[{"$nulls":3},"Contrato/contratos ",{"$nulls":4},{"v":0,"d":"0.00 €"},null,null,"Sin cambios"]
[{"$nulls":3},"Contrato/contratos ",{"$nulls":4},{"v":0,"d":"0.00 €"},null,null,"sin cambios"]
[{"$nulls":3},"Contrato/contratos ",{"$nulls":4},{"v":0,"d":"0.00 €"},null,null,"Sin cambios"]
[{"$nulls":3},"Contrato/contratos ",{"$nulls":4},{"v":0,"d":"0.00 €"},null,null,"Sin cambios"]
[{"$nulls":3},"Contrato/contratos ",{"$nulls":4},{"v":0,"d":"0.00 €"},null,null,"sin cambios"]
[{"$nulls":3},"Contrato/contratos ",{"$nulls":4},{"v":0,"d":"0.00 €"},null,null,"Sin cambios"]
[{"$nulls":3},"Contrato/contratos ",{"$nulls":4},{"v":0,"d":"0.00 €"},null,null,"Sin cambios"]
[{"$nulls":3},"Contrato/contratos ",{"$nulls":4},{"v":0,"d":"0.00 €"},null,null,"sin cambios"]
[{"$nulls":3},"Contrato/contratos ",{"$nulls":4},{"v":0,"d":"0.00 €"},null,null,"Sin cambios"]
[{"$nulls":3},"Contrato/contratos ",{"$nulls":4},{"v":0,"d":"0.00 €"},null,null,"sin cambios"]
[{"$nulls":3},"Contrato/contratos ",{"$nulls":4},{"v":0,"d":"0.00 €"},null,null,"Sin cambios"]
[{"$nulls":3},"Contrato/contratos ",{"$nulls":4},{"v":0,"d":"0.00 €"},null,null,"sin cambios"]
[{"$nulls":3},"Contrato/contratos ",{"$nulls":4},{"v":0,"d":"0.00 €"},null,null,"Sin cambios"]
[3,"Costos de transporte / gastos de viaje",null,{"$f":"IF('Datos básicos'!C21=\"Sí\",CONCATENATE(\"Ayuda:\",Ejemplo!O22),\"\")","v":""},{"$nulls":4},{"$f":"SUM(I62:I77)","v":{"v":0,"d":"0.00 €"}}]
[{"$nulls":8},{"$f":"ROUND(H62,2)","v":{"v":0,"d":"0.00 €"}},null,null,"sin cambios"]
[{"$nulls":8},{"$f":"ROUND(H63,2)","v":{"v":0,"d":"0.00 €"}},null,null,"sin cambios"]
[{"$nulls":8},{"v":0,"d":"0.00 €"},null,null,"Sin cambios"]
[{"$nulls":8},{"v":0,"d":"0.00 €"},null,null,"sin cambios"]
[{"$nulls":8},{"v":0,"d":"0.00 €"},null,null,"Sin cambios"]
[{"$nulls":8},{"v":0,"d":"0.00 €"},null,null,"Sin cambios"]
[{"$nulls":8},{"v":0,"d":"0.00 €"},null,null,"Sin cambios"]
[{"$nulls":8},{"v":0,"d":"0.00 €"},null,null,"Sin cambios"]
[{"$nulls":8},{"v":0,"d":"0.00 €"},null,null,"Sin cambios"]
[{"$nulls":8},{"v":0,"d":"0.00 €"},null,null,"sin cambios"]
[{"$nulls":8},{"v":0,"d":"0.00 €"},null,null,"Sin cambios"]
[{"$nulls":8},{"v":0,"d":"0.00 €"},null,null,"sin cambios"]
[{"$nulls":8},{"v":0,"d":"0.00 €"},null,null,"Sin cambios"]
[{"$nulls":8},{"v":0,"d":"0.00 €"},null,null,"Sin cambios"]
[{"$nulls":8},{"v":0,"d":"0.00 €"},null,null,"Sin cambios"]
[{"$nulls":8},{"v":0,"d":"0.00 €"},null,null,"sin cambios"]
[4,"Compensación de CO2 por viajes en avión",null,{"$f":"IF('Datos básicos'!C21=\"Sí\",CONCATENATE(\"Ayuda: \",Ejemplo!O30),\"\")","v":""},{"$nulls":4},{"$f":"SUM(I79:I90)","v":{"v":0,"d":"0.00 €"}}]
[{"$nulls":3},"Compensación ",{"$nulls":4},{"$f":"ROUND(H79,2)","v":{"v":0,"d":"0.00 €"}},null,null,"sin cambios"]
[{"$nulls":3},"Compensación ",{"$nulls":4},{"$f":"ROUND(H80,2)","v":{"v":0,"d":"0.00 €"}},null,null,"sin cambios"]
[{"$nulls":3},"Compensación ",{"$nulls":4},{"v":0,"d":"0.00 €"},null,null,"sin cambios"]
[{"$nulls":3},"Compensación ",{"$nulls":4},{"v":0,"d":"0.00 €"},null,null,"Sin cambios"]
[{"$nulls":3},"Compensación ",{"$nulls":4},{"v":0,"d":"0.00 €"},null,null,"Sin cambios"]
[{"$nulls":3},"Compensación ",{"$nulls":4},{"v":0,"d":"0.00 €"},null,null,"sin cambios"]
[{"$nulls":3},"Compensación ",{"$nulls":4},{"v":0,"d":"0.00 €"},null,null,"Sin cambios"]
[{"$nulls":3},"Compensación ",{"$nulls":4},{"v":0,"d":"0.00 €"},null,null,"sin cambios"]
[{"$nulls":3},"Compensación ",{"$nulls":4},{"v":0,"d":"0.00 €"},null,null,"Sin cambios"]
[{"$nulls":3},"Compensación ",{"$nulls":4},{"v":0,"d":"0.00 €"},null,null,"Sin cambios"]
[{"$nulls":3},"Compensación ",{"$nulls":4},{"v":0,"d":"0.00 €"},null,null,"sin cambios"]
[{"$nulls":3},"Compensación ",{"$nulls":4},{"v":0,"d":"0.00 €"},null,null,"sin cambios"]
[5,"Adquisición de equipos y materiales",null,{"$f":"IF('Datos básicos'!C21=\"Sí\",CONCATENATE(\"Ayuda:\",Ejemplo!O37),\"\")","v":""},{"$nulls":4},{"$f":"SUM(I92:I107)","v":{"v":0,"d":"0.00 €"}}]
[{"$nulls":8},{"$f":"ROUND(H92,2)","v":{"v":0,"d":"0.00 €"}},null,null,"sin cambios"]
[{"$nulls":8},{"$f":"ROUND(H93,2)","v":{"v":0,"d":"0.00 €"}},null,null,"Sin cambios"]
[{"$nulls":8},{"v":0,"d":"0.00 €"},null,null,"Sin cambios"]
[{"$nulls":8},{"v":0,"d":"0.00 €"},null,null,"Sin cambios"]
[{"$nulls":8},{"v":0,"d":"0.00 €"},null,null,"Sin cambios"]
[{"$nulls":8},{"v":0,"d":"0.00 €"},null,null,"Sin cambios"]
[{"$nulls":8},{"v":0,"d":"0.00 €"},null,null,"sin cambios"]
[{"$nulls":8},{"v":0,"d":"0.00 €"},null,null,"Sin cambios"]
[{"$nulls":8},{"v":0,"d":"0.00 €"},null,null,"Sin cambios"]
[{"$nulls":8},{"v":0,"d":"0.00 €"},null,null,"Sin cambios"]
[{"$nulls":8},{"v":0,"d":"0.00 €"},null,null,"Sin cambios"]
[{"$nulls":8},{"v":0,"d":"0.00 €"},null,null,"sin cambios"]
[{"$nulls":8},{"v":0,"d":"0.00 €"},null,null,"Sin cambios"]
[{"$nulls":8},{"v":0,"d":"0.00 €"},null,null,"Sin cambios"]
[{"$nulls":8},{"v":0,"d":"0.00 €"},null,null,"Sin cambios"]
[{"$nulls":8},{"v":0,"d":"0.00 €"},null,null,"sin cambios"]
[6,"Otros costos / consumibles",null,{"$f":"IF('Datos básicos'!C21=\"Sí\",CONCATENATE(\"Ayuda:\",Ejemplo!O48),\"\")","v":""},{"$nulls":4},{"$f":"SUM(I109:I124)","v":{"v":0,"d":"0.00 €"}}]
[{"$nulls":8},{"$f":"ROUND(H109,2)","v":{"v":0,"d":"0.00 €"}},null,null,"sin cambios"]
[{"$nulls":8},{"$f":"ROUND(H110,2)","v":{"v":0,"d":"0.00 €"}},null,null,"sin cambios"]
[{"$nulls":8},{"v":0,"d":"0.00 €"},null,null,"Sin cambios"]
[{"$nulls":8},{"v":0,"d":"0.00 €"},null,null,"Sin cambios"]
[{"$nulls":8},{"v":0,"d":"0.00 €"},null,null,"Sin cambios"]
[{"$nulls":8},{"v":0,"d":"0.00 €"},null,null,"Sin cambios"]
[{"$nulls":8},{"v":0,"d":"0.00 €"},null,null,"Sin cambios"]
[{"$nulls":8},{"v":0,"d":"0.00 €"},null,null,"Sin cambios"]
[{"$nulls":8},{"v":0,"d":"0.00 €"},null,null,"sin cambios"]
[{"$nulls":8},{"v":0,"d":"0.00 €"},null,null,"Sin cambios"]
[{"$nulls":8},{"v":0,"d":"0.00 €"},null,null,"Sin cambios"]
[{"$nulls":8},{"v":0,"d":"0.00 €"},null,null,"sin cambios"]
[{"$nulls":8},{"v":0,"d":"0.00 €"},null,null,"Sin cambios"]
[{"$nulls":8},{"v":0,"d":"0.00 €"},null,null,"Sin cambios"]
[{"$nulls":8},{"v":0,"d":"0.00 €"},null,null,"Sin cambios"]
[{"$nulls":8},{"v":0,"d":"0.00 €"},null,null,"sin cambios"]
[7,"Recursos para apoyar directamente a beneficiarios terceros\n(Indicación: Esta línea presupuestaria se refiere exclusivamente a los aportes financieros a beneficiarios terceros. Las contribuciones no podrán utilizarse para la adquisición de medicamentos, pesticidas y/o fertilizantes minerales. El procedimiento de selección de beneficiarios terceros debe explicarse en la descripción del proyecto. Pruebas: véase la línea subpresupuestaria).",null,{"$f":"IF('Datos básicos'!C21=\"Sí\",CONCATENATE(\"Ayuda:\",Ejemplo!O59),\"\")","v":""},{"$nulls":4},{"$f":"SUM(I126:I131)","v":{"v":0,"d":"0.00 €"}},null,null,{"$f":"IF(L124=\"VE\",\"ATENCIÓN: La GIZ no puede asumir los costos que se generan por las fluctuaciones cambiarias.\",\"\")","v":""}]
[null,"XXX (facturación contra ...)",{"$nulls":6},{"$f":"ROUND(D126*H126,2)","v":{"v":0,"d":"0.00 €"}},null,null,"sin cambios"]
[null,"XXX (facturación contra ...)",{"$nulls":6},{"$f":"ROUND(D127*H127,2)","v":{"v":0,"d":"0.00 €"}},null,null,"sin cambios"]
[null,"XXX (facturación contra ...)",{"$nulls":6},{"v":0,"d":"0.00 €"},null,null,"Sin cambios"]
[null,"XXX (facturación contra ...)",{"$nulls":6},{"v":0,"d":"0.00 €"},null,null,"Sin cambios"]
[null,"XXX (facturación contra ...)",{"$nulls":6},{"v":0,"d":"0.00 €"},null,null,"sin cambios"]
[null,"XXX (facturación contra ...)",{"$nulls":6},{"v":0,"d":"0.00 €"},null,null,"sin cambios"]
[8,"Costes de participación equitativa (costes \"Fair-Shared\")",null,{"$f":"IF('Datos básicos'!C21=\"Sí\",CONCATENATE(\"Ayuda:\",Ejemplo!O64),\"\")","v":""},{"$nulls":4},{"$f":"SUM(I133:I139)","v":{"v":0,"d":"0.00 €"}}]
[{"$nulls":8},{"$f":"ROUND(H133,2)","v":{"v":0,"d":"0.00 €"}},null,null,"sin cambios"]
[{"$nulls":8},{"$f":"ROUND(H134,2)","v":{"v":0,"d":"0.00 €"}},null,null,"sin cambios"]
[{"$nulls":8},{"v":0,"d":"0.00 €"},null,null,"sin cambios"]
[{"$nulls":8},{"v":0,"d":"0.00 €"},null,null,"Sin cambios"]
[{"$nulls":8},{"v":0,"d":"0.00 €"},null,null,"sin cambios"]
[{"$nulls":8},{"v":0,"d":"0.00 €"},null,null,"Sin cambios"]
[{"$nulls":8},{"v":0,"d":"0.00 €"},null,null,"sin cambios"]
[null,"Subtotal costos directos",{"$nulls":6},{"$f":"I132+I125+I108+I91+I78+I61+I43+I5","v":{"v":0,"d":"0.00 €"}}]
[9,"Costos generales de administración ",null,{"$f":"IF('Datos básicos'!C21=\"Sí\",CONCATENATE(\"Ayuda:\",Ejemplo!O68),\"\")","v":""},{"$nulls":4},{"$f":"I142","v":{"v":0,"d":"0.00 €"}}]
[null,"Costos generales de administración (sobre las líneas presupuestarias 1-X) ",null,{"v":0,"d":"0.00%"},{"$nulls":3},{"$f":"I140","v":{"v":0,"d":"0.00 €"}},{"$f":"ROUND(D142*H142,2)","v":{"v":0,"d":"0.00 €"}},null,null,"sin cambios"]
[null,"Subtotal financiamiento de la GIZ (hasta / contra justificante)*\n(costos directos + costos generales de administración)",{"$nulls":6},{"$f":"I140+I141","v":{"v":0,"d":"0.00 €"}}]
[null,"Contribución de la GIZ (hasta / contra justificante)*",{"$nulls":6},{"$f":"I143","v":{"v":0,"d":"0.00 €"}}]
[]
[null,"*Todas las líneas presupuestarias (excepto los costos generales de administración) deben liquidarse contra justificante."]
[]
[null,"Información: En el caso de que esté previsto financiar adjudicaciones para servicios externos y/o para equipos y materiales y/o suministros con cargo a fondos de la GIZ, deben observarse las directrices de adjudicación relevantes en virtud del texto del contrato."]
[]
[null,"Los beneficios del receptor no se financian. "]
[]
[null,"En caso de complementos al contrato: Realice las adaptaciones presupuestarias sobre la base del presupuesto acordado contractualmente por última vez y destaque los cambios en color. La GIZ no puede asumir los costos que se generan por las fluctuaciones cambiarias."]

{"sheet":"Ejemplo","index":3,"n_rows":90,"n_cols":15,"rows_kept":90,"merged":[[0,0,0,8],[3,1,3,7],[3,8,3,9],[4,3,4,7],[4,9,66,9],[4,14,8,14],[10,3,10,7],[10,14,19,14],[11,4,11,6],[12,4,12,6],[13,4,13,6],[14,4,14,6],[15,4,15,6],[16,4,16,6],[17,4,17,6],[18,4,18,6],[19,4,19,6],[20,4,20,6],[21,3,21,7],[21,14,28,14],[22,3,22,6],[23,3,23,6],[24,3,24,6],[25,3,25,6],[26,3,26,6],[27,3,27,6],[28,3,28,6],[29,3,29,7],[29,14,35,14],[30,3,30,6],[31,3,31,6],[32,3,32,6],[35,3,35,6],[36,3,36,7],[36,14,45,14],[37,3,37,6],[38,3,38,6],[39,3,39,6],[40,3,40,6],[41,3,41,6],[42,3,42,6],[43,3,43,6],[44,3,44,6],[45,3,45,6],[46,3,46,6],[47,3,47,7],[47,14,55,14],[48,3,48,6],[49,3,49,6],[50,3,50,6],[51,3,51,6],[52,3,52,6],[53,3,53,6],[54,3,54,6],[55,3,55,6],[56,3,56,6],[57,3,57,6],[58,3,58,7],[58,14,61,14],[59,4,59,6],[60,4,60,6],[61,4,61,6],[62,4,62,6],[63,3,63,7],[63,14,65,14],[64,4,64,6],[65,4,65,6],[66,1,66,7],[67,3,67,7],[67,14,68,14],[68,4,68,6],[69,1,69,7],[70,3,70,7],[70,14,72,14],[71,3,71,6],[72,3,72,6],[73,3,73,6],[74,1,74,7],[75,3,75,7],[75,14,77,14],[76,3,76,6],[77,3,77,6],[78,3,78,6],[79,3,79,6],[80,1,80,7],[80,8,80,9],[82,1,82,10],[84,1,85,9],[86,1,86,9],[87,1,87,9],[88,1,88,9],[89,1,90,9],[89,14,91,14]]}
["Presupuesto - Anexo 1",{"$nulls":8},{"$f":"'Datos básicos'!C34","v":"00:00:00"},{"$nulls":4},"Instrucciones:\nEsta hoja sirve únicamente como orientación para cumplimentar la hoja “Presupuesto financiamientos”. "]
[{"$nulls":9},"2024-02"]
[null,"Descripción","Código","Número ","Unidad (persona)","Número","Unidad (p. ej., mes, contrato, vuelo…)","Subvencio-nable hasta  \nen EUR \n(precio por unidad) ","Contribución\ntotal de la GIZ \nen EUR (hasta)","Contribución propia / financiamiento de terceros \nen EUR (hasta) ",{"$nulls":4},"Indicaciones generales: \nEste formato del presupuesto es válido como base de liquidación. Si lo desea, para su uso interno puede crear otros archivos con información más detallada.\nTodas las partidas indicadas en el presupuesto se deben reflejar en la descripción del proyecto para que quede clara la referencia al proyecto. \nLa tabla dispone de fórmulas que deben conservarase.  \nMantenga el formato con dos decimales. \nSe recomienda redondear al alza las unidades en la medida de lo posible. Los costos se acuerdan con un valor de “hasta”. "]
[null,"Nota: Las celdas con fondo azul deben ser rellenados por el receptor",{"$nulls":6},"Nota: se calculan automáticamente",{"$nulls":5},"Indicaciones para la cumplimentación "]
[1,"Personal\n(Nota: Sólo pueden liquidarse costos directos de personal (costo bruto mensual del personal para el empleador). Los suplementos, como los costos generales de personal, que se calculan de manera prorrateada sobre el personal, no son subvencionables. Indique únicamente los títulos de las funciones, no los nombres de las personas.\n\na) Costes de colaboradores y colaboradoras asalariados del receptor (sólo empleados de su organización): la acreditación debe realizarse en forma de liquidaciones salariales o, en el caso de financiamientos parciales, en forma de liquidaciones salariales y registros de tiempos trabajados;  (véase el enlace en 1b).\n\nb) Costes de peritos y peritas integrados, quienes son personas autoempleadas o empleadas por un tercero y cedidas al receptor y que, por tanto, no trabajan sobre la base de un contrato de trabajo con el receptor, sino que lo hacen siguiendo las instrucciones / bajo la supervisión del receptor, toda vez que lo permita la ley aplicable al contrato de los peritos y peritas integrados. Para las formas de prueba, véase: Requisitos en cuanto al presupuesto y a la ejecución financiera (Anexo 3a).)",{"$nulls":6},{"$f":"SUM(I6:I10)","v":{"v":94000,"d":"94,000.00 €"}},"\n\n\n\n\n\n\n\n\n\n\n\n\n\nDebe evitarse la financiación prorrateada de las partidas presupuestarias y aplicarse únicamente a los costes de personal y a los costes de reparto equitativo (costes \"Fair-Shared\").\n\n\nOtros costes incurridos en el curso de la ejecución del proyecto que no sean financiados por la GIZ deberán calcularse por separado, ya sea como contribución propia o como financiamiento de terceros.",{"$nulls":4},"La columna “Subvencionable hasta” debería indicar siempre el costo bruto mensual del personal para el empleador. Por favor, introduzca el porcentaje a financiar por la GIZ en la columna D. Pueden tenerse en cuenta los costes de personal auxiliares reglamentarios en los que se incurra de conformidad con la legislación del respectivo contrato de trabajo. Por norma general son financiables las contribuciones sociales y los pagos acordados en virtud del contrato de trabajo o del convenio colectivo (excepto los pagos de bonificaciones o las participaciones en los beneficios). Otros gastos accesorios deberán concertarse, examinarse e integrarse en la línea presupuestaria en forma de nota antes de la elaboración del contrato. Los contratos de miniempleos o de personal temporal estudiantil se deben atribuir a los costos de personal, aun cuando no se abonen contribuciones sociales.                                                                                                                                                                                         Si está previsto financiar proporcionalmente a varias personas (por ejemplo, 3 personas a un 75 %) incrementar el número de meses correspondientemente e incluir el número de personas en la descripción de la línea presupuestaria."]
[null,"Encargado / encargada de la gestión de proyectos",null,{"v":1,"d":"100%"},"Persona ",20,"Meses ",{"v":3000,"d":"3,000.00 €"},{"$f":"D6*F6*H6","v":{"v":60000,"d":"60,000.00 €"}}]
[null,"Responsable de finanzas ",null,{"v":0.5,"d":"50%"},"Persona ",20,"Meses ",{"v":2200,"d":"2,200.00 €"},{"$f":"D7*F7*H7","v":{"v":22000,"d":"22,000.00 €"}}]
[null,"Indemnizaciones por despido / Reservas por disposición legal",null,{"v":1,"d":"100%"},"Persona ",20,"Meses ",{"v":600,"d":"600.00 €"},{"$f":"D8*F8*H8","v":{"v":12000,"d":"12,000.00 €"}}]
[{"$nulls":4},"Persona ",null,"Meses ",null,{"$f":"D9*F9*H9","v":{"v":0,"d":"0.00 €"}}]
[{"$nulls":4},"Persona ",null,"Meses ",null,{"$f":"D10*F10*H10","v":{"v":0,"d":"0.00 €"}}]
[2,"Servicios externos (tipo/contenido del servicio)\n",null,"",{"$nulls":4},{"$f":"SUM(I12:I21)","v":{"v":7000,"d":"7,000.00"}},{"$nulls":5},"Por favor, indique el nombre de la función; ningún detalle del contrato (horas de trabajo, etc.); mencionar solo el valor planificado (¡deben observarse las directrices de adjudicación relevantes según el texto del contrato!); por tipo de servicio debería utilizarse una línea presupuestaria (todos los costos generados durante la realización de la prestación en el marco de un contrato de servicios, por ejemplo, capacitación, viajes, se indican en una línea presupuestaria).                                                                                                                                                                                                              Eventos: Los prestaciones que realiza un mismo oferente deben indicarse en una línea presupuestaria. (Por ejemplo, si el catering y el lugar del evento son ofertados por un hotel, entonces deben indicarse en una misma línea presupuestaria; si se reserva otro hotel para el alojamiento, ese se incluye en una línea presupuestaria individual). Los ingresos que percibe el receptor en concepto de la organización de eventos no se pueden financiar con cargo al contrato. Sólo se financian los costos que puedan acreditar fehacientemente."]
[null,"Moderación",null,1,"Contrato/contratos ",null,null,{"v":5000,"d":"5,000.00 €"},{"$f":"D12*H12","v":{"v":5000,"d":"5,000.00 €"}}]
[null,"Catering y alquiler de salas",null,1,"Contrato/contratos ",null,null,{"v":2000,"d":"2,000.00 €"},{"$f":"D13*H13","v":{"v":2000,"d":"2,000.00 €"}}]
[null,"Experto / experta en tecnología solar",null,1,"Contrato/contratos ",{"$nulls":3},{"v":0,"d":"0.00 €"}]
[null,"Experto / experta en...",null,1,"Contrato/contratos ",{"$nulls":3},{"v":0,"d":"0.00 €"}]
[null,"personal externo (no en régimen asalariado con obligación de cotizar a la seguridad social con el receptor)",null,1,"Contrato/contratos ",{"$nulls":3},{"v":0,"d":"0.00 €"}]
[null,"Contratos de asesoramiento",null,1,"Contrato/contratos ",{"$nulls":3},{"v":0,"d":"0.00 €"}]
[null,"Empresas externas, p. ej. para transportes en autobús",null,1,"Contrato/contratos ",{"$nulls":3},{"v":0,"d":"0.00 €"}]
[{"$nulls":4},"Contrato/contratos ",{"$nulls":3},{"v":0,"d":"0.00 €"}]
[{"$nulls":4},"Contrato/contratos ",{"$nulls":3},{"v":0,"d":"0.00 €"}]
[{"$nulls":4},"Contrato/contratos ",{"$nulls":3},{"v":0,"d":"0.00 €"}]
[3,"Costos de transporte / gastos de viaje",null,"",{"$nulls":4},{"$f":"SUM(I23:I29)","v":{"v":14500,"d":"14,500.00 €"}},{"$nulls":5},"Los gastos de viaje suelen incluir todo tipo de transporte (por ejemplo, combustible, alquiler de vehículos, costes de vuelos, traslados en autobús, asignaciones de precio por kilometraje (si están presupuestados), alojamiento, viáticos, visados). Para la facturación se utilizarán facturas y/o justificantes adecuados de los viáticos (por ejemplo, informes de gastos firmados por los participantes). \n\nPor favor, no especifique el número de vuelos - cualquier variación requerirá modificaciones del contrato. En caso de auditoría, se comprobará el número de vuelos."]
[null,"Vuelos internacionales",null,"Vuelos",{"$nulls":3},{"v":4000,"d":"4,000.00 €"},{"$f":"H23","v":{"v":4000,"d":"4,000.00 €"}}]
[null,"Vuelos nacionales",null,"Vuelos",{"$nulls":3},{"v":500,"d":"500.00 €"},{"$f":"H24","v":{"v":500,"d":"500.00 €"}}]
[null,"Gastos de viaje internacionales (viáticos / viáticos por pernoctación, medios de transporte, visado, vacunas necesarias)",null,"Unidad",{"$nulls":3},{"v":10000,"d":"10,000.00 €"},{"v":10000,"d":"10,000.00 €"}]
[null,"Gastos de viaje nacionales (viáticos / viáticos por pernoctación, medios de transporte)",null,"Unidad",{"$nulls":4},{"v":0,"d":"0.00 €"}]
[null,"Costos de transporte de mercancías",null,"Unidad",{"$nulls":4},{"v":0,"d":"0.00 €"}]
[null,"Gastos de viaje de participantes en talleres",null,"Unidad",{"$nulls":4},{"v":0,"d":"0.00 €"}]
[{"$nulls":8},{"v":0,"d":"0.00 €"}]
[4,"Compensación de CO2 por viajes en avión",{"$nulls":6},{"$f":"SUM(I31:I36)","v":{"v":500,"d":"500.00 €"}},{"$nulls":5},"Las emisiones de CO2 causadas por los viajes en avión pueden compensarse, si no es posible evitarlas y reducirlas. El requisito previo es que estos vuelos se contabilicen en la línea presupuestaria \"Costes de transporte / gastos de viaje\". La prueba de los costes de compensación de los vuelos son los recibos del proveedor de la compensación, de los que debe facilitarse las siguientes informaciones:\nRuta del vuelo (inicio y destino), fecha, clase de reserva y el importe calculado de CO2. \nSi esta información no figura en los recibos del proveedor de compensación, la información sobre la ruta del vuelo (inicio, destino, fecha, clase de reserva) y la cantidad calculada de CO2 debe ser añadida por el receptor."]
[null,"Vuelos internacionales",null,"Compensación",{"$nulls":3},{"v":300,"d":"300.00 €"},{"$f":"H31","v":{"v":300,"d":"300.00 €"}}]
[null,"Vuelos nacionales",null,"Compensación",{"$nulls":3},{"v":200,"d":"200.00 €"},{"$f":"H32","v":{"v":200,"d":"200.00 €"}}]
[{"$nulls":8},{"v":0,"d":"0.00 €"}]
[{"$nulls":8},{"v":0,"d":"0.00 €"}]
[{"$nulls":8},{"v":0,"d":"0.00 €"}]
[{"$nulls":8},{"v":0,"d":"0.00 €"}]
[5,"Adquisición de equipos y materiales",null,"",{"$nulls":4},{"$f":"SUM(I38:I47)","v":{"v":4000,"d":"4,000.00 €"}},{"$nulls":5},"Los bienes que se adquieren y acreditan en una misma factura, deben indicarse en una línea presupuestaria. P. ej., el equipamiento de TI se puede consignar como una línea presupuestaria. En ese caso debería incluirse entre paréntesis una descripción más detallada de los equipos y materiales que previsiblemente se adquirirán. En el caso de medicamentos y productos agroquímicos, para una autorización se requiere información adicional. Para ello, rellene las hojas \"Medicamentos”, “Pesticidas y fertilizantes minerales”. "]
[null,"Equipamiento de TI (computadora portátil, impresora, proyector, accesorios)",null,"Adquisición",{"$nulls":3},{"v":4000,"d":"4,000.00 €"},{"$f":"H38","v":{"v":4000,"d":"4,000.00 €"}}]
[null,"Equipamiento fotográfico (cámara y accesorios)",{"$nulls":6},{"$f":"D39*H39","v":{"v":0,"d":"0.00 €"}}]
[null,"Máquina XY (indicar en concreto qué máquina, ¡pero no mencionar el modelo concreto ni la empresa!)",{"$nulls":6},{"v":0,"d":"0.00 €"}]
[null,"Mobiliario (escritorios, sillas, armarios)",{"$nulls":6},{"v":0,"d":"0.00 €"}]
[null,"Indicar exactamente los vehículos, de qué tipo:  p. ej. vehículo eléctrico, SUV blindado, escúter...",{"$nulls":6},{"v":0,"d":"0.00 €"}]
[null,"Teléfonos móviles",{"$nulls":6},{"v":0,"d":"0.00 €"}]
[null,"Aportes en especie a beneficiarios terceros (prueba en forma de documentos de adquisición y el protocolo de entrega)",{"$nulls":6},{"v":0,"d":"0.00 €"}]
[{"$nulls":8},{"v":0,"d":"0.00 €"}]
[{"$nulls":8},{"v":0,"d":"0.00 €"}]
[{"$nulls":8},{"v":0,"d":"0.00 €"}]
[6,"Otros costos / consumibles",null,{"$f":"IF('Datos básicos'!C32=\"Ja\",CONCATENATE(\"AUSFÜLLHILFE: \",TRIM(Ejemplo!O71)),\"\")","v":""},{"$nulls":4},{"$f":"SUM(I49:I58)","v":{"v":100,"d":"100.00 €"}},{"$nulls":5},"Tenga en cuenta que los costos indirectos se enmarcan dentro de los costos generales de administración. Solo se pueden presupuestar como líneas presupuestarias individuales los costos directos.\nCuando es posible indicar los costos de alquiler, se pueden consignar solo los costos directos, o sea, el alquiler neto sin los gastos accesorios. Los gastos accesorios son costos indirectos y como tales deben incluirse en los costos generales de administración.                                                                      \nAl contrario que los equipos y materiales adquiridos, que se utilizan durante un período más largo, en el caso de los consumibles se trata de bienes que se consumen, como por ejemplo cartuchos para impresoras, papel de impresión."]
[null,"Material de oficina (papel de impresión, cartuchos para impresoras, material de escritura)",null,"Unidad",{"$nulls":3},{"v":100,"d":"100.00"},{"$f":"H49","v":{"v":100,"d":"100.00 €"}}]
[null,"Software de TI, licencias",{"$nulls":6},{"$f":"H50","v":{"v":0,"d":"0.00 €"}}]
[null,"Material de embalaje para xxx",{"$nulls":6},{"v":0,"d":"0.00 €"}]
[null,"Material de laboratorio",{"$nulls":6},{"v":0,"d":"0.00 €"}]
[null,"Productos higiénicos",{"$nulls":6},{"v":0,"d":"0.00 €"}]
[null,"Herramientas",{"$nulls":6},{"v":0,"d":"0.00 €"}]
[null,"Agua",{"$nulls":6},{"v":0,"d":"0.00 €"}]
[null,"Folletos / material publicitario",{"$nulls":6},{"v":0,"d":"0.00 €"}]
[null,"Gastos telefónicos, tarjetas telefónicas…",{"$nulls":6},{"v":0,"d":"0.00 €"}]
[{"$nulls":8},{"v":0,"d":"0.00 €"}]
[7,"Recursos para apoyar directamente a beneficiarios terceros\n(Indicación: Esta línea presupuestaria se refiere exclusivamente a los aportes financieros a beneficiarios terceros. Las contribuciones no podrán utilizarse para la adquisición de medicamentos, pesticidas y/o fertilizantes minerales. El procedimiento de selección de beneficiarios terceros debe explicarse en la descripción del proyecto. Pruebas: véase la línea subpresupuestaria).",null,{"$f":"IF('Datos básicos'!C32=\"Ja\",CONCATENATE(\"AUSFÜLLHILFE: \",TRIM(Ejemplo!O77)),\"\")","v":""},{"$nulls":4},{"$f":"SUM(I60:I63)","v":{"v":75600,"d":"75,600.00 €"}},{"$nulls":5},"Tenga en cuenta la indicación en la línea presupuestaria. Los justificantes deben acordarse en el presupuesto y los criterios de selección deben exponerse en la descripción del proyecto. Importante: En este caso se trata solo de beneficiarios que se benefician del proyecto del receptor. Entre estos se cuentan el fomento de empresas emergentes, el fomento de iniciativas, medidas de efectivo por trabajo, concursos de fomento, becas y similares. Se requiere concertación respecto a los justificantes. Respecto a los detalles se requiere asesoramiento de la sección Gestión de contratos. "]
[null,"Efectivo por trabajo (La liquidación se realiza contra la lista de participación, confirmación de recepción mediante firma o huella dactilar; el procedimiento de selección se muestra en la descripción del proyecto)",null,20,"Personas",null,null,{"v":30,"d":"30.00 €"},{"$f":"D60*H60","v":{"v":600,"d":"600.00 €"}}]
[null,"Financiación de start-up (la liquidación se efectúa contra prueba de utilización efectiva por parte del beneficiario tercero); se aplica el artículo 5.2 del contrato. ",null,5,"Start-ups",null,null,{"v":15000,"d":"15,000.00 €"},{"$f":"D61*H61","v":{"v":75000,"d":"75,000.00 €"}}]
[{"$nulls":8},{"v":0,"d":"0.00 €"}]
[{"$nulls":8},{"v":0,"d":"0.00 €"}]
[8,"Costes de participación equitativa (costes \"Fair-Shared\")",{"$nulls":6},{"$f":"SUM(I65:I66)","v":{"v":0,"d":"0.00 €"}},{"$nulls":5},"Esta línea presupuestaria es sólo para organizaciones que trabajan con una asignación o un prorrateo de gastos generales en sus sistemas contables y pueden demostrarlo en consecuencia, siempre que estos costes no se asignen a gastos generales de administración. El tipo de verificación se determina en cada caso concreto. Un ejemplo concreto es la verificación porcentual basada en los costes totales y los registros de tiempo."]
[null,"Costes de participación equitativa (costes \"Fair-Shared\") directos (6,42% sobre los costes directos de las líneas presupuestarias 1 - 6, basados en el modelo de costes de participación equitativa del receptor).",null,null,"Unidad",{"$nulls":3},{"$f":"D65*H65","v":{"v":0,"d":"0.00 €"}}]
[{"$nulls":4},"Unidad",{"$nulls":3},{"$f":"D66*H66","v":{"v":0,"d":"0.00 €"}}]
[null,"Subtotal costos directos",{"$nulls":6},{"$f":"I48+I37+I11+I5+I22+I30+I59+I64","v":{"v":195700,"d":"195,700.00 €"}}]
[9,"Costos generales de administración ",{"$nulls":6},{"$f":"I69","v":{"v":9785,"d":"9,785.00 €"}},{"$nulls":5},"Normalmente los gastos generales de administración son asumidos como aporte proprio del receptor del financiamiento. Si el receptor del financiamiento no puede asumirlos, la GIZ puede hacerse cargo de un pequeño porcentaje de los gastos generales de administración. La clase y la cuantía de los gastos deben ser confirmados previamente por un auditor o una auditora. Si los gastos generales de administración se calculan con base a menos líneas presupuestarias, se requiere informar a la gestión de contratos al respecto."]
[null,"Costos generales de administración  (sobre las líneas presupuestarias 1-8)",null,{"v":0.05,"d":"5.00%"},{"$nulls":3},{"$f":"I67","v":{"v":195700,"d":"195,700.00 €"}},{"$f":"ROUND(D69*H69,2)","v":{"v":9785,"d":"9,785.00 €"}}]
[null,"Subtotal financiamiento de la GIZ (hasta / contra justificante)*\n(costos directos + costos generales de administración)",{"$nulls":6},{"$f":"I67+I68","v":{"v":205485,"d":"205,485.00 €"}}]
[10,"Transferencia de financiamientos a receptores terceros —debe presentarse un presupuesto detallado—",null,{"$f":"IF('Datos básicos'!C32=\"Ja\",CONCATENATE(\"AUSFÜLLHILFE: \",TRIM(Ejemplo!#REF!)),\"\")","v":""},{"$nulls":4},{"$f":"SUM(I72:I74)","v":{"v":10000,"d":"10,000.00 €"}},{"$nulls":5},"Se trata de contrapartes (co-ejecutores). Se trata de contrapartes que implementan una parte del proyecto de forma autónoma. Deben presentar un presupuesto aparte y someterse a un examen de la aptitud comercial y jurídica. "]
[null,"OPQ",null,"Transferencia",{"$nulls":3},{"v":10000,"d":"10,000.00 €"},{"$f":"H72","v":{"v":10000,"d":"10,000.00 €"}}]
[null,"XYZ (nombre del receptor tercero) ",null,"Transferencia",{"$nulls":4},{"$f":"H73","v":{"v":0,"d":"0.00 €"}}]
[null,"XYZ (nombre del receptor tercero) ",null,"Transferencia",{"$nulls":4},{"v":0,"d":"0.00 €"},null,"Porcentajes "]
[null,"Contribución de la GIZ (hasta / contra justificante)*",{"$nulls":6},{"$f":"I70+I71","v":{"v":215485,"d":"215,485.00 €"}},{"$f":"I75","v":{"v":215485,"d":"215,485.00 €"}},{"$f":"IFERROR(I75/$I$81,\"\")","v":{"v":0.9349198429398876,"d":"93.49%"}}]
[11,"Contribución propia / financiamiento de terceros",{"$nulls":7},{"$f":"SUM(J77:J80)","v":{"v":15000,"d":"15,000.00 €"}},{"$nulls":4},"Indique solamente el valor total del porcentaje propio / financiamiento de terceros. En la descripción del proyecto se debe incluir una descripción breve del financiamiento proporcional. "]
[null,"ABC (contribución propia)",null,"contribución",{"$nulls":3},{"v":5000,"d":"5,000.00 €"},null,{"$f":"H77","v":{"v":5000,"d":"5,000.00 €"}},{"$f":"IFERROR(J77/$I$81,\"\")","v":{"v":0.021693385686704123,"d":"2.17%"}}]
[null,"DEF (financiamiento de terceros)",null,"contribución",{"$nulls":3},{"v":10000,"d":"10,000.00 €"},null,{"$f":"H78","v":{"v":10000,"d":"10,000.00 €"}},{"$f":"IFERROR(J78/$I$81,\"\")","v":{"v":0.043386771373408246,"d":"4.34%"}}]
[{"$nulls":10},{"$f":"IFERROR(J79/$I$81,\"\")","v":{"v":0,"d":"0.00%"}}]
[{"$nulls":10},{"$f":"IFERROR(J80/$I$81,\"\")","v":{"v":0,"d":"0.00%"}}]
[null,"Financiamiento total ",{"$nulls":6},{"$f":"I75+J76","v":{"v":230485,"d":"230,485.00 €"}},null,{"$f":"SUM(K75:K80)","v":{"v":1,"d":"100.00%"}}]
[]
[null,"*Todas las líneas presupuestarias (excepto los costos generales de administración) deben liquidarse contra justificante."]
[]
[null,"Información: En el caso de que esté previsto financiar adjudicaciones para servicios externos y/o para equipos y materiales y/o suministros con cargo a fondos de la GIZ, deben observarse las directrices de adjudicación relevantes en virtud del texto del contrato."]
[]
[]
[null,"Los beneficios del receptor no se financian. "]
[null,"Podrán presentarse recibos propios por el uso de instalaciones y locales propios del receptor o del receptor tercero si se confirma además que\na) implica la redistribución de los costes propios del receptor o del receptor tercero dentro de su propia organización; la GIZ se reserva el derecho de comprobar los costes propios de forma aleatoria.\nb) el uso de instalaciones comparables a precios de mercado no supone un ahorro de costes. "]
[null,"En caso de complementos al contrato: Realice las adaptaciones presupuestarias sobre la base del presupuesto acordado contractualmente por última vez y destaque los cambios en color. La GIZ no puede asumir los costos que se generan por las fluctuaciones cambiarias.",{"$nulls":12},"En la solicitud de modificación del contrato deben explicarse las reasignaciones presupuestarias. Especialmente en caso de que se incrementen los costos de personal deberá indicarse un motivo. "]